bitfinex/quotes_BTCUSD_20241011
["timestamp","ask_amount","ask_price","bid_price","bid_amount"]
[1728652450328,0.82479021,61372.0,61371.0,0.173738]
[1728652451647,0.82499602,61372.0,61371.0,0.173738]
[1728652452834,0.94541869,61372.0,61371.0,0.095438]
[1728652453069,0.94541869,61372.0,61371.0,0.001638]
[1728652453296,1.76179567,61372.0,61371.0,0.001638]
[1728652456155,1.78479567,61372.0,61371.0,0.001638]
[1728652456858,1.90935359,61372.0,61371.0,0.001638]
[1728652457085,1.79093092,61372.0,61371.0,0.001638]
[1728652458224,1.88881092,61372.0,61371.0,0.001638]
[1728652458365,1.88681092,61372.0,61371.0,0.001638]
[1728652458585,1.88881092,61372.0,61371.0,0.001638]
[1728652458820,1.88681092,61372.0,61371.0,0.001638]
[1728652460186,1.87153092,61372.0,61371.0,0.001638]
[1728652460386,1.99195359,61372.0,61371.0,0.001638]
[1728652461000,1.99395359,61372.0,61371.0,0.001638]
[1728652461427,1.97995359,61372.0,61371.0,0.001638]
[1728652461631,1.99395359,61372.0,61371.0,0.001638]
[1728652462515,0.29208125,61370.0,61369.0,0.04315863]
[1728652462745,3.59065855,61370.0,61369.0,0.04315863]
[1728652463715,3.60265855,61370.0,61369.0,0.04315863]
[1728652463915,3.61665855,61370.0,61369.0,0.04315863]
[1728652464979,3.61865855,61370.0,61369.0,0.04315863]
[1728652465197,3.77247928,61370.0,61369.0,0.04315863]
[1728652465397,3.77247928,61370.0,61369.0,0.03493017]
[1728652465600,3.77447928,61370.0,61369.0,0.03493017]
[1728652465796,0.64521128,61370.0,61369.0,0.03493017]
[1728652466168,0.79209125,61366.0,61365.0,1.7e-07]
[1728652466377,1.08182322,61366.0,61365.0,1.7e-07]
[1728652466783,1.16402322,61366.0,61365.0,1.7e-07]
[1728652467398,1.17802322,61366.0,61365.0,1.7e-07]
[1728652467897,1.03095559,61359.0,61358.0,5.8e-07]
[1728652468115,1.20026489,61359.0,61358.0,5.8e-07]
[1728652468520,1.20226489,61359.0,61358.0,5.8e-07]
[1728652468970,1.21626489,61359.0,61358.0,5.8e-07]
[1728652470023,1.23026489,61359.0,61358.0,5.8e-07]
[1728652470218,1.39970759,61359.0,61358.0,5.8e-07]
[1728652470421,1.49758759,61359.0,61358.0,5.8e-07]
[1728652471219,0.99758759,61359.0,61358.0,5.8e-07]
[1728652472235,0.99558759,61359.0,61358.0,5.8e-07]
[1728652472457,1.01002748,61359.0,61358.0,5.8e-07]
[1728652472877,1.58962748,61359.0,61358.0,5.8e-07]
[1728652473918,1.56162748,61359.0,61358.0,5.8e-07]
[1728652474130,1.57562748,61359.0,61358.0,5.8e-07]
[1728652474348,1.58962748,61359.0,61358.0,5.8e-07]
[1728652475676,1.76940703,61359.0,61358.0,5.8e-07]
[1728652476986,1.15863899,61359.0,61358.0,5.8e-07]
[1728652477205,1.27906166,61359.0,61358.0,5.8e-07]
[1728652477871,1.15863899,61359.0,61358.0,5.8e-07]
[1728652478117,1.15194783,61359.0,61358.0,5.8e-07]
[1728652478324,1.05863899,61359.0,61358.0,5.8e-07]
[1728652478523,1.15199361,61359.0,61358.0,5.8e-07]
[1728652478733,1.15612886,61359.0,61358.0,5.8e-07]
[1728652478977,1.13799361,61359.0,61358.0,5.8e-07]
[1728652479184,1.14212886,61359.0,61358.0,5.8e-07]
[1728652479398,1.28045336,61359.0,61358.0,5.8e-07]
[1728652479608,0.262983,61356.0,61355.0,0.08530058]
[1728652479822,0.4322923,61356.0,61355.0,0.08530058]
[1728652480272,0.61246315,61356.0,61355.0,0.08530058]
[1728652481083,0.62646315,61356.0,61355.0,0.08530058]
[1728652482175,0.64046315,61356.0,61355.0,0.08530058]
[1728652484884,0.64046315,61356.0,61355.0,0.16820058]
[1728652485322,0.53353888,61356.0,61355.0,0.16820058]
[1728652485780,0.4602923,61356.0,61355.0,0.16820058]
[1728652486443,0.50911383,61356.0,61355.0,0.16820058]
[1728652489324,0.4602923,61356.0,61355.0,0.16820058]
[1728652493562,0.4602923,61356.0,61355.0,0.16983858]
[1728652495665,0.62615075,61356.0,61355.0,0.16983858]
[1728652495893,0.4602923,61356.0,61355.0,0.16983858]
[1728652503177,0.4602923,61356.0,61355.0,0.291126]
[1728652503178,0.028,61356.0,61355.0,0.291126]
[1728652503394,0.028,61356.0,61355.0,0.17070333]
[1728652503619,0.028,61356.0,61355.0,0.58498306]
[1728652504554,0.014,61356.0,61355.0,0.46456039]
[1728652505296,0.014,61356.0,61355.0,0.58498306]
[1728652505511,0.014819,61356.0,61355.0,0.58498306]
[1728652505729,0.006819,61356.0,61355.0,0.58498306]
[1728652505979,0.006819,61356.0,61355.0,0.42199806]
[1728652506214,0.006819,61356.0,61355.0,0.46456039]
[1728652506423,0.010819,61356.0,61355.0,0.58498306]
[1728652510748,0.010819,61356.0,61355.0,0.42199806]
[1728652510961,0.010819,61356.0,61355.0,0.58498306]
[1728652511801,0.010819,61356.0,61355.0,0.42199806]
[1728652512223,0.010819,61356.0,61355.0,0.58498306]
[1728652517449,0.010819,61356.0,61355.0,0.71040573]
[1728652518499,0.000819,61356.0,61355.0,0.71040573]
[1728652518769,0.24399369,61367.0,61366.0,0.00086475]
[1728652519021,0.000819,61372.0,61371.0,0.33620775]
[1728652519256,0.000819,61372.0,61371.0,0.17326475]
[1728652519780,0.3330683,61372.0,61371.0,0.01134817]
[1728652520005,0.4559484,61372.0,61371.0,0.01048342]
[1728652520207,0.162956,61366.0,61365.0,0.00086475]
[1728652520445,0.3322653,61366.0,61365.0,0.00086475]
[1728652520660,0.3322653,61366.0,61365.0,0.01135205]
[1728652520876,0.3322653,61366.0,61365.0,0.00086475]
[1728652521329,0.3322653,61366.0,61365.0,0.01135205]
[1728652521563,0.3322653,61366.0,61365.0,0.12128742]
[1728652521784,0.3412653,61366.0,61365.0,0.13177472]
[1728652522002,0.009,61366.0,61365.0,0.13177472]
[1728652522223,0.1,61369.0,61365.0,0.23053352]
[1728652522447,0.008,61366.0,61365.0,0.11011085]
[1728652522664,0.01,61366.0,61365.0,0.59530474]
[1728652522905,0.01,61366.0,61365.0,0.35131105]
[1728652523133,0.019,61366.0,61365.0,0.35131105]
[1728652523349,0.162935,61374.0,61368.0,0.162948]
[1728652523350,0.15073042,61374.0,61368.0,0.162948]
[1728652523566,0.1693093,61373.0,61368.0,0.28337067]
[1728652523791,0.3322473,61373.0,61372.0,0.00086475]
[1728652524197,0.3322473,61373.0,61372.0,0.10345436]
[1728652524409,0.3322473,61373.0,61372.0,0.09296475]
[1728652524619,0.3322473,61373.0,61372.0,0.10345436]
[1728652524895,0.008,61373.0,61372.0,0.10345436]
[1728652525302,0.162931,61376.0,61375.0,0.00086475]
[1728652525539,0.3322403,61376.0,61375.0,0.00086475]
[1728652525776,0.3322403,61376.0,61375.0,0.19503988]
[1728652525988,0.1693093,61376.0,61375.0,0.18455549]
[1728652526227,0.1693093,61376.0,61375.0,0.27533988]
[1728652526921,0.000819,61384.0,61381.0,0.00086475]
[1728652527147,1.00203699,61383.0,61382.0,0.00086475]
[1728652527370,1.00203699,61383.0,61382.0,0.01132508]
[1728652527371,0.7580433,61383.0,61382.0,0.01132508]
[1728652527596,0.7580433,61383.0,61382.0,0.00086475]
[1728652528271,0.7660433,61383.0,61382.0,0.00186475]
[1728652529402,0.7740433,61383.0,61382.0,0.00286475]
[1728652536312,0.7740433,61383.0,61382.0,0.01232812]
[1728652536545,0.7660433,61383.0,61382.0,0.00186475]
[1728652536779,0.7580433,61383.0,61382.0,0.00086475]
[1728652536992,0.7860433,61383.0,61382.0,0.00286475]
[1728652537211,0.7860433,61383.0,61382.0,0.00186475]
[1728652537431,0.7580433,61383.0,61382.0,0.00086475]
[1728652537667,0.7700433,61383.0,61382.0,0.00186475]
[1728652538762,0.7820433,61383.0,61382.0,0.00286475]
[1728652540407,0.7828623,61383.0,61382.0,0.00286475]
[1728652540645,0.7828623,61383.0,61382.0,0.002]
[1728652540646,0.8610623,61383.0,61382.0,0.002]
[1728652540885,0.9532623,61383.0,61382.0,0.002]
[1728652544380,1.00182082,61383.0,61382.0,0.002]
[1728652545820,0.7828623,61383.0,61382.0,0.002]
[1728652548058,0.7828623,61383.0,61382.0,0.01147265]
[1728652548291,0.7828623,61383.0,61382.0,0.002]
[1728652551270,0.83154098,61383.0,61382.0,0.002]
[1728652552112,0.7828623,61383.0,61382.0,0.002]
[1728652552536,0.85588033,61383.0,61382.0,0.002]
[1728652553474,0.96256803,61383.0,61382.0,0.002]
[1728652554428,1.0599254,61383.0,61382.0,0.002]
[1728652556374,0.96256803,61383.0,61382.0,0.002]
[1728652557308,1.18006474,61383.0,61382.0,0.002]
[1728652557973,1.1947631,61383.0,61382.0,0.002]
[1728652558590,1.3642058,61383.0,61382.0,0.002]
[1728652559733,0.85600992,61383.0,61382.0,0.002]
[1728652559960,0.83162952,61383.0,61382.0,0.002]
[1728652560182,0.7828623,61383.0,61382.0,0.002]
[1728652560391,0.6828623,61383.0,61382.0,0.00286475]
[1728652560868,0.6828623,61383.0,61382.0,0.01233446]
[1728652561087,0.6828623,61383.0,61382.0,0.00286475]
[1728652561307,0.6828623,61383.0,61382.0,0.01233446]
[1728652561523,0.6828623,61383.0,61382.0,0.00286475]
[1728652561957,0.6828623,61383.0,61382.0,0.01233446]
[1728652562606,0.6828623,61383.0,61382.0,0.19598621]
[1728652570623,0.024819,61383.0,61382.0,0.53275826]
[1728652570845,0.024819,61383.0,61382.0,0.52950021]
[1728652571072,0.0001,61388.0,61387.0,0.00086475]
[1728652571322,0.0001,61388.0,61387.0,0.5180165]
[1728652571545,0.0001,61388.0,61387.0,0.36458029]
[1728652572223,0.0001,61388.0,61387.0,0.52748029]
[1728652572640,0.0001,61388.0,61387.0,0.53248029]
[1728652572865,0.0001,61388.0,61387.0,0.52748029]
[1728652573079,0.0001,61388.0,61387.0,0.52948029]
[1728652574424,0.0001,61388.0,61387.0,0.53148029]
[1728652575532,0.000918,61388.0,61387.0,0.53148029]
[1728652578780,0.000918,61388.0,61387.0,0.53308029]
[1728652582494,0.000918,61388.0,61387.0,0.46989955]
[1728652584682,0.000918,61388.0,61387.0,0.59037056]
[1728652586739,0.000918,61388.0,61387.0,0.46989955]
[1728652591105,0.000918,61388.0,61387.0,0.59037056]
[1728652591592,0.000918,61388.0,61387.0,0.59537056]
[1728652592049,0.000918,61388.0,61387.0,0.35442854]
[1728652592487,0.000918,61388.0,61387.0,0.47489955]
[1728652600428,0.000918,61388.0,61387.0,0.18652854]
[1728652600651,0.000918,61388.0,61387.0,0.01592854]
[1728652600652,0.163816,61388.0,61387.0,0.01592854]
[1728652601530,0.163816,61388.0,61387.0,0.01392854]
[1728652601988,0.163816,61388.0,61387.0,0.01192854]
[1728652602380,0.165816,61388.0,61387.0,0.01192854]
[1728652602626,0.3351253,61388.0,61387.0,0.01106379]
[1728652602839,0.3331253,61388.0,61387.0,0.01106379]
[1728652603045,0.3371253,61388.0,61387.0,0.0026]
[1728652603260,0.5581156,61388.0,61387.0,0.0026]
[1728652603468,0.5581156,61388.0,61387.0,0.0036]
[1728652603667,0.4411253,61388.0,61387.0,0.0036]
[1728652605336,0.48981738,61388.0,61387.0,0.0036]
[1728652606155,0.4411253,61388.0,61387.0,0.0036]
[1728652606570,0.4411253,61388.0,61387.0,0.01292071]
[1728652607130,0.48981738,61388.0,61387.0,0.0036]
[1728652607327,0.4411253,61388.0,61387.0,0.0036]
[1728652608476,0.48981738,61388.0,61387.0,0.0036]
[1728652608699,0.4411253,61388.0,61387.0,0.0036]
[1728652612751,0.48981738,61388.0,61387.0,0.0036]
[1728652613706,0.4411253,61388.0,61387.0,0.0036]
[1728652614177,0.48981738,61388.0,61387.0,0.0036]
[1728652614416,0.4411253,61388.0,61387.0,0.0036]
[1728652614648,0.48981738,61388.0,61387.0,0.0036]
[1728652615408,0.4411253,61388.0,61387.0,0.0036]
[1728652616195,0.48981738,61388.0,61387.0,0.0036]
[1728652616419,0.4411253,61388.0,61387.0,0.0036]
[1728652616909,0.48981738,61388.0,61387.0,0.0036]
[1728652617616,0.48987059,61388.0,61387.0,0.0036]
[1728652618574,0.4411253,61388.0,61387.0,0.0036]
[1728652623614,0.47823006,61388.0,61387.0,0.0036]
[1728652623851,0.47823006,61388.0,61387.0,0.002]
[1728652623852,1.12199977,61388.0,61387.0,0.002]
[1728652624092,0.95154739,61388.0,61387.0,0.002]
[1728652624325,1.71672739,61388.0,61387.0,0.002]
[1728652624536,1.55915162,61388.0,61387.0,0.002]
[1728652624784,0.78997162,61388.0,61387.0,0.001]
[1728652625010,0.4371253,61388.0,61387.0,0.0026]
[1728652625220,0.48184564,61388.0,61387.0,0.0016]
[1728652625467,0.4331253,61388.0,61387.0,0.0016]
[1728652625700,0.4471253,61388.0,61387.0,0.0036]
[1728652625885,0.4431253,61388.0,61387.0,0.0026]
[1728652626136,0.4331253,61388.0,61387.0,0.0016]
[1728652626379,0.4371253,61388.0,61387.0,0.0026]
[1728652626625,0.4461253,61388.0,61387.0,0.0036]
[1728652628172,0.5377253,61388.0,61387.0,0.0036]
[1728652628884,0.68583592,61388.0,61387.0,0.0036]
[1728652629144,0.96316033,61388.0,61387.0,0.002]
[1728652629377,0.84330929,61388.0,61387.0,0.002]
[1728652629585,0.99125329,61388.0,61387.0,0.002]
[1728652629843,0.98925329,61388.0,61387.0,0.002]
[1728652630103,1.11010685,61388.0,61387.0,0.002]
[1728652631402,1.26046335,61388.0,61387.0,0.002]
[1728652631617,1.1372421,61388.0,61387.0,0.002]
[1728652632094,0.6,61385.0,61384.0,0.001636]
[1728652632311,1.54407917,61385.0,61384.0,0.001636]
[1728652632528,5.04753317,61385.0,61384.0,0.001636]
[1728652633268,5.36091593,61385.0,61384.0,0.001636]
[1728652633505,0.002,61382.0,61375.0,0.24399369]
[1728652633739,0.60907523,61376.0,61375.0,0.24399369]
[1728652633985,0.78906441,61376.0,61375.0,0.24399369]
[1728652634197,0.78906441,61376.0,61374.0,0.003236]
[1728652634198,0.262932,61375.0,61374.0,0.003236]
[1728652634429,0.61223615,61375.0,61374.0,0.003236]
[1728652634651,1.19256407,61375.0,61374.0,0.003236]
[1728652634863,1.26678879,61375.0,61374.0,0.001636]
[1728652635082,1.26656268,61375.0,61374.0,0.001636]
[1728652635535,1.26643819,61375.0,61374.0,0.001636]
[1728652635735,1.27057344,61375.0,61374.0,0.001636]
[1728652635951,1.30257344,61375.0,61374.0,0.001636]
[1728652636166,1.31257344,61375.0,61374.0,0.001636]
[1728652636798,1.45857004,61375.0,61374.0,1e-06]
[1728652637021,1.55592733,61375.0,61374.0,1e-06]
[1728652637242,1.45042119,61375.0,61374.0,1e-06]
[1728652637653,1.44142119,61375.0,61374.0,1e-06]
[1728652638071,1.44142119,61375.0,61374.0,0.001001]
[1728652638072,1.45542119,61375.0,61374.0,0.001001]
[1728652638282,1.32413039,61375.0,61374.0,0.001001]
[1728652638907,1.32413039,61375.0,61374.0,0.002001]
[1728652639123,1.33813039,61375.0,61374.0,0.002001]
[1728652639592,1.33785535,61375.0,61374.0,0.002001]
[1728652640440,1.33585535,61375.0,61374.0,0.002001]
[1728652641327,1.33785535,61375.0,61374.0,0.002001]
[1728652643120,4.26536135,61375.0,61374.0,0.002001]
[1728652643572,0.262959,61365.0,61364.0,0.24399369]
[1728652643788,0.4322683,61365.0,61364.0,0.24399369]
[1728652644004,0.4322683,61365.0,61357.0,0.24399369]
[1728652644005,0.262977,61358.0,61357.0,0.24399369]
[1728652644249,0.4322863,61358.0,61357.0,0.26354368]
[1728652644450,0.4322863,61358.0,61357.0,0.01954999]
[1728652644867,0.1,61357.0,61355.0,0.004168]
[1728652645111,0.4322923,61356.0,61355.0,0.004168]
[1728652646133,0.3322923,61356.0,61355.0,0.36335907]
[1728652646627,0.3322923,61356.0,61355.0,0.38392212]
[1728652646628,0.3422923,61356.0,61355.0,0.38392212]
[1728652647604,0.3522923,61356.0,61355.0,0.38492212]
[1728652648041,0.3522923,61356.0,61355.0,0.38292212]
[1728652648042,0.3322923,61356.0,61355.0,0.38292212]
[1728652648508,0.3462923,61356.0,61355.0,0.38492212]
[1728652651876,0.47870623,61356.0,61355.0,0.38492212]
[1728652652823,0.47870623,61356.0,61355.0,0.2012958]
[1728652653261,0.3462923,61356.0,61355.0,0.2012958]
[1728652655278,0.3462923,61356.0,61355.0,0.38492212]
[1728652658036,0.3462923,61356.0,61355.0,0.2012958]
[1728652658559,0.3462923,61356.0,61355.0,0.1201958]
[1728652660224,0.3462923,61356.0,61355.0,0.02573105]
[1728652660509,0.3462923,61356.0,61355.0,0.006168]
[1728652660510,0.6031056,61356.0,61355.0,0.006168]
[1728652660761,0.5242923,61356.0,61355.0,0.006168]
[1728652661263,0.55142755,61356.0,61355.0,0.006168]
[1728652661502,3.99769522,61356.0,61355.0,0.006168]
[1728652661740,4.99828955,61356.0,61355.0,0.006168]
[1728652661974,5.32799695,61356.0,61355.0,0.005168]
[1728652662225,5.51162327,61356.0,61355.0,0.005168]
[1728652662459,5.48991927,61356.0,61355.0,0.004168]
[1728652662767,0.263001,61349.0,61348.0,0.0484462]
[1728652662985,0.263001,61349.0,61348.0,0.0158452]
[1728652662986,4.39330287,61349.0,61348.0,0.0158452]
[1728652663209,4.2720927,61349.0,61348.0,0.0158452]
[1728652663437,4.1750164,61349.0,61348.0,0.0159552]
[1728652663665,4.30891472,61349.0,61348.0,0.0159552]
[1728652663890,4.40591722,61349.0,61348.0,0.0159552]
[1728652664112,2.99750622,61349.0,61348.0,0.0159552]
[1728652664332,2.59561312,61349.0,61348.0,0.0159552]
[1728652664542,2.58162438,61349.0,61348.0,0.0159552]
[1728652664758,2.59562438,61349.0,61348.0,0.0159552]
[1728652665885,2.52291119,61349.0,61348.0,0.0159552]
[1728652666570,2.57135746,61349.0,61348.0,0.0159552]
[1728652666793,2.52291119,61349.0,61348.0,0.0159552]
[1728652667056,2.50891119,61349.0,61348.0,0.0159552]
[1728652667272,2.52291119,61349.0,61348.0,0.0159552]
[1728652667513,2.53691119,61349.0,61348.0,0.0159552]
[1728652667750,2.58535443,61349.0,61348.0,0.0159552]
[1728652668194,2.59989718,61349.0,61348.0,0.0159552]
[1728652669784,0.29013925,61348.0,61347.0,2e-07]
[1728652670007,6.11025408,61348.0,61347.0,2e-07]
[1728652670226,1.12462727,61348.0,61347.0,2e-07]
[1728652670484,0.94100095,61348.0,61347.0,2e-07]
[1728652670697,0.76915025,61344.0,61343.0,2e-07]
[1728652670911,1.60776639,61344.0,61343.0,2e-07]
[1728652671347,1.42904583,61344.0,61343.0,2e-07]
[1728652671611,1.52674583,61344.0,61343.0,2e-07]
[1728652671822,1.52674583,61344.0,61337.0,0.02091318]
[1728652671823,0.47379257,61338.0,61337.0,0.02091318]
[1728652672042,5.69310187,61338.0,61337.0,0.02091318]
[1728652672504,5.76940187,61338.0,61337.0,0.02091318]
[1728652673166,5.78340187,61338.0,61337.0,0.02091318]
[1728652673613,5.84579086,61338.0,61337.0,1.8e-07]
[1728652673857,5.84579086,61338.0,61327.0,0.02112177]
[1728652673858,0.94189225,61328.0,61327.0,0.02112177]
[1728652674075,6.41621092,61328.0,61327.0,7.7e-07]
[1728652674341,1.31782787,61328.0,61327.0,7.7e-07]
[1728652674554,1.67289689,61328.0,61327.0,7.7e-07]
[1728652674799,1.72127994,61328.0,61327.0,7.7e-07]
[1728652675008,1.53765362,61328.0,61327.0,7.7e-07]
[1728652675233,1.71927994,61328.0,61327.0,7.7e-07]
[1728652675457,1.71927994,61328.0,61325.0,7.7e-07]
[1728652675458,0.00413525,61326.0,61325.0,7.7e-07]
[1728652675675,0.46150655,61326.0,61325.0,7.7e-07]
[1728652675907,0.46150655,61326.0,61322.0,0.001636]
[1728652675908,0.00413525,61323.0,61322.0,7.7e-07]
[1728652676127,0.64314087,61323.0,61322.0,7.7e-07]
[1728652676599,0.64314087,61323.0,61301.0,0.0005]
[1728652676600,0.5,61317.0,61301.0,0.0005]
[1728652676819,0.5,61317.0,61302.0,0.24399369]
[1728652676820,0.26723225,61313.0,61302.0,0.24399369]
[1728652677046,5.18778757,61313.0,61302.0,0.24399369]
[1728652677287,5.18778757,61313.0,61295.0,0.0958]
[1728652677288,0.00413525,61303.0,61265.0,0.01643512]
[1728652677540,0.5,61307.0,61270.0,0.00086475]
[1728652677541,0.1,61272.0,61270.0,0.00086475]
[1728652677771,0.1,61271.0,61270.0,0.18362632]
[1728652678069,0.1,61288.0,61271.0,0.00086475]
[1728652678306,0.1,61284.0,61283.0,0.00086475]
[1728652678533,0.50715769,61288.0,61287.0,0.00086475]
[1728652678749,0.50715769,61288.0,61287.0,0.18449107]
[1728652678975,0.4324733,61288.0,61287.0,0.00086475]
[1728652679433,0.163166,61287.0,61286.0,0.00086475]
[1728652679664,0.3324753,61287.0,61286.0,0.00086475]
[1728652680801,0.3424753,61287.0,61286.0,0.18449107]
[1728652681291,0.3524753,61287.0,61286.0,0.18449107]
[1728652681521,0.46198703,61287.0,61286.0,0.18449107]
[1728652681759,0.3524753,61287.0,61286.0,0.18449107]
[1728652682206,0.3424753,61287.0,61286.0,0.18449107]
[1728652682434,0.3514753,61287.0,61286.0,0.18449107]
[1728652683566,0.3514753,61287.0,61286.0,0.19886122]
[1728652684011,0.3414753,61287.0,61286.0,0.19886122]
[1728652684255,0.3524753,61287.0,61286.0,0.19886122]
[1728652685383,0.174166,61287.0,61286.0,0.19886122]
[1728652685643,0.263153,61292.0,61291.0,0.00086475]
[1728652685867,0.4324623,61292.0,61291.0,0.00086475]
[1728652686091,0.4324623,61292.0,61291.0,0.18449107]
[1728652686973,0.4424623,61292.0,61291.0,0.18449107]
[1728652687426,0.021,61292.0,61291.0,0.18449107]
[1728652687672,0.021,61292.0,61291.0,0.34764707]
[1728652687909,0.021,61292.0,61291.0,0.01581615]
[1728652688373,0.011,61292.0,61291.0,0.01581615]
[1728652688597,0.16315,61294.0,61291.0,0.01581615]
[1728652688822,0.007,61292.0,61291.0,0.01581615]
[1728652689048,0.163151,61293.0,61292.0,0.00086475]
[1728652689521,0.326295,61295.0,61294.0,0.00086475]
[1728652689769,0.48944,61295.0,61294.0,0.00086475]
[1728652690016,0.263132,61300.0,61299.0,0.00086475]
[1728652690246,0.4324413,61300.0,61299.0,0.36059107]
[1728652690705,0.4324413,61300.0,61299.0,0.37552561]
[1728652691776,0.52091167,61300.0,61299.0,0.01493454]
[1728652691960,0.4434413,61300.0,61299.0,0.01493454]
[1728652692204,0.163137,61298.0,61297.0,0.00086475]
[1728652692419,0.3324463,61298.0,61297.0,0.00086475]
[1728652692864,0.3324463,61298.0,61297.0,0.18449107]
[1728652693084,0.3324463,61298.0,61297.0,0.19941867]
[1728652694902,0.1693093,61298.0,61297.0,0.19941867]
[1728652695107,0.1801293,61298.0,61297.0,0.28111867]
[1728652695331,0.1891293,61298.0,61297.0,0.28111867]
[1728652695559,0.1701293,61298.0,61297.0,0.28111867]
[1728652695774,0.00082,61298.0,61297.0,0.54195867]
[1728652695991,0.01382,61298.0,61297.0,0.54195867]
[1728652696204,0.00782,61298.0,61297.0,0.54195867]
[1728652696443,0.00082,61298.0,61297.0,0.54195867]
[1728652696652,0.01182,61298.0,61297.0,0.54195867]
[1728652698019,0.00682,61298.0,61297.0,0.73058499]
[1728652698221,0.00682,61298.0,61297.0,0.54695867]
[1728652698428,0.00782,61298.0,61297.0,0.54795867]
[1728652698622,0.00182,61298.0,61297.0,0.54995867]
[1728652699056,0.00782,61298.0,61297.0,0.54995867]
[1728652699269,0.00682,61298.0,61297.0,0.54895867]
[1728652699479,0.00182,61298.0,61297.0,0.54995867]
[1728652699903,0.00282,61298.0,61297.0,0.55095867]
[1728652701921,0.00282,61298.0,61297.0,0.75758499]
[1728652702149,0.24399369,61304.0,61303.0,0.71644139]
[1728652702384,0.24399369,61312.0,61311.0,0.16396675]
[1728652702614,0.24399369,61312.0,61311.0,0.34759307]
[1728652702834,0.24399369,61312.0,61311.0,0.36233242]
[1728652703082,0.163084,61318.0,61314.0,0.163093]
[1728652703293,0.3323933,61318.0,61317.0,0.18449107]
[1728652703748,0.3323933,61318.0,61317.0,0.19919354]
[1728652703962,0.4324933,61318.0,61317.0,0.19919354]
[1728652704848,0.263184,61318.0,61317.0,0.19919354]
[1728652705289,0.0091,61318.0,61317.0,0.19919354]
[1728652705531,0.0091,61318.0,61317.0,0.36227954]
[1728652705763,0.0191,61318.0,61317.0,0.27739354]
[1728652705979,0.0101,61318.0,61317.0,0.27739354]
[1728652706196,0.163184,61318.0,61317.0,0.27739354]
[1728652706417,0.175184,61318.0,61317.0,0.27739354]
[1728652707503,0.0061,61318.0,61317.0,0.27739354]
[1728652707711,0.0001,61318.0,61317.0,0.44047954]
[1728652707924,0.181184,61318.0,61317.0,0.27739354]
[1728652708142,0.0091,61318.0,61317.0,0.27739354]
[1728652708614,0.170184,61318.0,61317.0,0.27739354]
[1728652708822,0.170184,61318.0,61317.0,0.19919354]
[1728652708823,0.00892,61318.0,61317.0,0.19919354]
[1728652709029,0.01492,61318.0,61317.0,0.19919354]
[1728652709239,0.00692,61318.0,61317.0,0.19919354]
[1728652709656,0.01292,61318.0,61317.0,0.19919354]
[1728652710369,0.176004,61318.0,61317.0,0.19919354]
[1728652711011,0.01292,61318.0,61317.0,0.19919354]
[1728652713171,0.176004,61318.0,61317.0,0.19919354]
[1728652713396,0.01292,61318.0,61317.0,0.19919354]
[1728652718033,0.4453133,61318.0,61317.0,0.01470247]
[1728652718544,0.4453133,61318.0,61307.0,0.00086475]
[1728652718545,0.326181,61316.0,61307.0,0.00086475]
[1728652718810,0.16311,61308.0,61307.0,0.00086475]
[1728652719070,0.163121,61304.0,61303.0,0.00086475]
[1728652719339,0.163121,61304.0,61295.0,0.18362632]
[1728652719340,0.163124,61303.0,61302.0,0.00086475]
[1728652719594,0.3324333,61303.0,61302.0,0.00086475]
[1728652720871,0.3324333,61303.0,61295.0,0.00086475]
[1728652720872,0.163142,61296.0,61295.0,0.00086475]
[1728652721126,0.3324513,61296.0,61295.0,0.00086475]
[1728652721616,0.3324513,61296.0,61281.0,0.326363]
[1728652721617,0.163158,61290.0,61289.0,0.00086475]
[1728652721868,0.163158,61290.0,61282.0,0.42762001]
[1728652721869,0.163177,61283.0,61282.0,0.42762001]
[1728652722120,0.326315,61291.0,61288.0,0.00086475]
[1728652722121,0.3324703,61289.0,61288.0,0.00086475]
[1728652722599,0.3324703,61289.0,61282.0,0.18362632]
[1728652722600,0.163164,61288.0,61287.0,0.00086475]
[1728652722846,0.3324733,61288.0,61287.0,0.00086475]
[1728652723841,0.163169,61286.0,61285.0,0.00086475]
[1728652724099,0.3324783,61286.0,61285.0,0.00086475]
[1728652725836,0.3354783,61286.0,61285.0,0.00086475]
[1728652726303,0.3374783,61286.0,61285.0,0.00086475]
[1728652726542,0.3374783,61286.0,61282.0,0.00086475]
[1728652726543,0.163177,61283.0,61282.0,0.00086475]
[1728652726807,0.45807367,61283.0,61282.0,0.00086475]
[1728652727034,0.163182,61281.0,61280.0,0.00086475]
[1728652727354,0.331339,61286.0,61280.0,0.18449107]
[1728652727355,0.005,61286.0,61280.0,0.18449107]
[1728652727613,0.005,61286.0,61285.0,0.00086475]
[1728652727614,0.265169,61286.0,61285.0,0.00086475]
[1728652727859,0.002,61286.0,61285.0,0.00086475]
[1728652728111,0.165169,61286.0,61285.0,0.00086475]
[1728652728363,0.165169,61286.0,61285.0,0.01149671]
[1728652728612,0.3344783,61286.0,61285.0,0.01149671]
[1728652728850,0.3344783,61286.0,61273.0,0.00664]
[1728652728851,0.163182,61281.0,61280.0,0.00086475]
[1728652729094,0.3324913,61281.0,61280.0,0.00086475]
[1728652729332,0.3324913,61281.0,61280.0,0.01152278]
[1728652730328,0.1743093,61281.0,61280.0,0.01152278]
[1728652730559,0.005,61281.0,61280.0,0.01152278]
[1728652730798,0.005,61281.0,61280.0,0.17470778]
[1728652731278,0.005,61281.0,61280.0,0.17797111]
[1728652731579,0.005,61281.0,61280.0,0.17470778]
[1728652731814,0.005,61281.0,61280.0,0.01152278]
[1728652732057,0.163175,61284.0,61280.0,0.01152278]
[1728652732293,0.014,61281.0,61280.0,0.01152278]
[1728652732523,0.005,61281.0,61280.0,0.01316278]
[1728652732987,0.01,61281.0,61280.0,0.01316278]
[1728652733228,0.168182,61281.0,61280.0,0.01316278]
[1728652733482,0.005,61281.0,61280.0,0.01316278]
[1728652733717,0.16318,61282.0,61280.0,0.01316278]
[1728652733965,0.1693093,61282.0,61280.0,0.01316278]
[1728652734205,0.3324903,61282.0,61281.0,0.00086475]
[1728652734439,0.1693093,61282.0,61281.0,0.00086475]
[1728652734688,0.1693093,61282.0,61281.0,0.0115803]
[1728652735663,0.1773093,61282.0,61281.0,0.0115803]
[1728652736170,0.3404893,61282.0,61281.0,0.0115803]
[1728652737857,0.3404893,61282.0,61281.0,0.00086475]
[1728652738301,0.3404893,61282.0,61281.0,0.01158256]
[1728652739732,0.3404893,61282.0,61281.0,0.00086475]
[1728652739983,0.3404893,61282.0,61281.0,0.01158256]
[1728652740678,0.3404893,61282.0,61281.0,0.00086475]
[1728652740899,0.3404893,61282.0,61281.0,0.01158256]